[Event "January 2 Early 2024"]
[Site "https://www.chess.com"]
[Date "2024.01.02"]
[Round "6"]
[White "Lund, Gunnar"]
[Black "Pavlidou, Ekaterini"]
[Result "1-0"]
[Board "130"]
[TimeControl "180+1"]
[WhiteFideId "1520814"]
[BlackFideId "4213262"]
[WhiteElo "2562"]
[BlackElo "2351"]
[WhiteTeam "NOR"]
[BlackTeam "GRE"]
[WhiteClock "0:00:11"]
[BlackClock "0:00:10"]

1. a3 {[%clk 0:02:53]}  a5 {[%clk 0:02:57]} 2. h3 {[%clk 0:02:54]}  d5 {[%clk 0:02:57]} 3. d3 {[%clk 0:02:54]}  c5 {[%clk 0:02:57]} 4. e3 {[%clk 0:02:55]}  Nc6 {[%clk 0:02:57]} 5. Nc3 {[%clk 0:02:56]}  e5 {[%clk 0:02:57]} 6. Bd2 {[%clk 0:02:56]}  d4 {[%clk 0:02:56]} 7. Ne4 {[%clk 0:02:55]}  f5 {[%clk 0:02:54]} 8. Ng3 {[%clk 0:02:55]}  g6 {[%clk 0:02:53]} 9. Nf3 {[%clk 0:02:54]}  Bg7 {[%clk 0:02:52]} 10. Be2 {[%clk 0:02:52]}  Nge7 {[%clk 0:02:52]} 11. O-O {[%clk 0:02:51]}  O-O {[%clk 0:02:52]} 12. Ne1 {[%clk 0:02:51]}  Be6 {[%clk 0:02:47]} 13. a4 {[%clk 0:02:50]}  Rc8 {[%clk 0:02:46]} 14. Rb1 {[%clk 0:02:35]}  Nd5 {[%clk 0:02:44]} 15. e4 {[%clk 0:02:34]}  Nf4 {[%clk 0:02:31]} 16. Nf3 {[%clk 0:02:17]}  Ne7 {[%clk 0:02:17]} 17. Re1 {[%clk 0:02:10]}  h6 {[%clk 0:02:03]} 18. Bf1 {[%clk 0:02:07]}  fxe4 {[%clk 0:01:54]} 19. Nxe4 {[%clk 0:02:06]}  b6 {[%clk 0:01:53]} 20. Kh2 {[%clk 0:01:57]}  g5 {[%clk 0:01:51]} 21. Ng1 {[%clk 0:01:47]}  Qd7 {[%clk 0:01:46]} 22. g3 {[%clk 0:01:46]}  Nfg6 {[%clk 0:01:40]} 23. Bg2 {[%clk 0:01:46]}  g4 {[%clk 0:01:27]} 24. b3 {[%clk 0:01:41]}  Rf7 {[%clk 0:01:17]} 25. Qe2 {[%clk 0:01:40]}  Rcf8 {[%clk 0:01:16]} 26. Rf1 {[%clk 0:01:41]}  Bd5 {[%clk 0:01:10]} 27. hxg4 {[%clk 0:01:37]}  Be6 {[%clk 0:01:09]} 28. f3 {[%clk 0:01:34]}  Nd5 {[%clk 0:01:08]} 29. Rbe1 {[%clk 0:01:33]}  Qe7 {[%clk 0:01:00]} 30. Nh3 {[%clk 0:01:30]}  Qd7 {[%clk 0:00:57]} 31. Nhf2 {[%clk 0:01:30]}  Nge7 {[%clk 0:00:50]} 32. Nd1 {[%clk 0:01:24]}  Ng6 {[%clk 0:00:50]} 33. Nb2 {[%clk 0:01:24]}  Qd8 {[%clk 0:00:44]} 34. Nc4 {[%clk 0:01:22]}  Ngf4 {[%clk 0:00:40]} 35. gxf4 {[%clk 0:01:20]}  exf4 {[%clk 0:00:36]} 36. Kg1 {[%clk 0:01:14]}  Ne3 {[%clk 0:00:36]} 37. Bc1 {[%clk 0:01:01]}  h5 {[%clk 0:00:33]} 38. g5 {[%clk 0:00:40]}  Bd5 {[%clk 0:00:32]} 39. Bh3 {[%clk 0:00:31]}  Bxe4 {[%clk 0:00:28]} 40. dxe4 {[%clk 0:00:32]}  Qxg5+ {[%clk 0:00:28]} 41. Kh1 {[%clk 0:00:32]}  Qh4 {[%clk 0:00:27]} 42. Qh2 {[%clk 0:00:30]}  Nxf1 {[%clk 0:00:22]} 43. Rxf1 {[%clk 0:00:31]}  Kh8 {[%clk 0:00:21]} 44. Be6 {[%clk 0:00:30]}  Qxh2+ {[%clk 0:00:20]} 45. Kxh2 {[%clk 0:00:31]}  Rf6 {[%clk 0:00:20]} 46. Bf5 {[%clk 0:00:28]}  Rxf5 {[%clk 0:00:20]} 47. exf5 {[%clk 0:00:29]}  Rxf5 {[%clk 0:00:20]} 48. Re1 {[%clk 0:00:28]}  Rf8 {[%clk 0:00:20]} 49. Nxb6 {[%clk 0:00:27]}  Rd8 {[%clk 0:00:18]} 50. Bxf4 {[%clk 0:00:20]}  d3 {[%clk 0:00:18]} 51. Rd1 {[%clk 0:00:21]}  Rd4 {[%clk 0:00:14]} 52. Be3 {[%clk 0:00:12]}  Be5+ {[%clk 0:00:14]} 53. Kg2 {[%clk 0:00:12]}  Rb4 {[%clk 0:00:15]} 54. Nc4 {[%clk 0:00:11]}  dxc2 {[%clk 0:00:15]} 55. Rc1 {[%clk 0:00:12]}  Rxb3 {[%clk 0:00:15]} 56. Nxe5 {[%clk 0:00:11]}  Rxe3 {[%clk 0:00:14]} 57. Nd7 {[%clk 0:00:08]}  Re2+ {[%clk 0:00:14]} 58. Kg3 {[%clk 0:00:08]}  c4 {[%clk 0:00:14]} 59. Nb6 {[%clk 0:00:08]}  Kg7 {[%clk 0:00:13]} 60. Nxc4 {[%clk 0:00:08]}  Kg6 {[%clk 0:00:14]} 61. Nxa5 {[%clk 0:00:08]}  Kg5 {[%clk 0:00:14]} 62. Nb3 {[%clk 0:00:07]}  h4+ {[%clk 0:00:14]} 63. Kh3 {[%clk 0:00:07]}  Kf4 {[%clk 0:00:14]} 64. a5 {[%clk 0:00:05]}  Kxf3 {[%clk 0:00:14]} 65. a6 {[%clk 0:00:05]}  Kf2 {[%clk 0:00:13]} 66. a7 {[%clk 0:00:04]}  Re3+ {[%clk 0:00:11]} 67. Kxh4 {[%clk 0:00:04]}  Rc3 {[%clk 0:00:10]} 68. a8=Q {[%clk 0:00:03]}  Rc4+ {[%clk 0:00:11]} 69. Kg5 {[%clk 0:00:03]}  Rb4 {[%clk 0:00:10]} 70. Rxc2+ {[%clk 0:00:02]}  Ke3 {[%clk 0:00:10]} 71. Qc6 {[%clk 0:00:03]}  Rxb3 {[%clk 0:00:09]} 72. Rc3+ {[%clk 0:00:03]}  Rxc3 {[%clk 0:00:09]} 73. Qxc3+ {[%clk 0:00:04]}  Ke4 {[%clk 0:00:09]} 74. Kf6 {[%clk 0:00:05]}  Kf4 {[%clk 0:00:09]} 75. Ke7 {[%clk 0:00:06]}  Ke4 {[%clk 0:00:09]} 76. Kd7 {[%clk 0:00:07]}  Kf4 {[%clk 0:00:09]} 77. Kc7 {[%clk 0:00:07]}  Ke4 {[%clk 0:00:10]} 78. Kb7 {[%clk 0:00:08]}  Kf4 {[%clk 0:00:11]} 79. Kb6 {[%clk 0:00:09]}  Ke4 {[%clk 0:00:11]} 80. Kc5 {[%clk 0:00:09]}  Kf4 {[%clk 0:00:12]} 81. Qd4+ {[%clk 0:00:09]}  Kf5 {[%clk 0:00:12]} 82. Kd5 {[%clk 0:00:10]}  Kg6 {[%clk 0:00:12]} 83. Qe4+ {[%clk 0:00:11]}  Kf6 {[%clk 0:00:12]} 84. Kd6 {[%clk 0:00:11]}  Kf7 {[%clk 0:00:12]} 85. Qf5+ {[%clk 0:00:12]}  Kg7 {[%clk 0:00:12]} 86. Ke6 {[%clk 0:00:11]}  Kh8 {[%clk 0:00:10]} 87. Qg5 {[%clk 0:00:11]} 1-0

[Event "January 2 Early 2024"]
[Site "https://www.chess.com"]
[Date "2024.01.02"]
[Round "6"]
[White "Jeran, Bostjan"]
[Black "Rogov, Matfey"]
[Result "0-1"]
[Board "131"]
[TimeControl "180+1"]
[WhiteFideId "14604612"]
[BlackFideId "44191308"]
[WhiteElo "2347"]
[BlackElo "2538"]
[WhiteTeam "SLO"]
[BlackTeam "RUS"]
[WhiteClock "0:00:00"]
[BlackClock "0:00:15"]

1. Nf3 {[%clk 0:02:59]}  Nc6 {[%clk 0:02:59]} 2. d4 {[%clk 0:02:53]}  d5 {[%clk 0:02:58]} 3. g3 {[%clk 0:02:50]}  Bf5 {[%clk 0:02:58]} 4. Bg2 {[%clk 0:02:48]}  Nb4 {[%clk 0:02:58]} 5. Na3 {[%clk 0:02:46]}  e6 {[%clk 0:02:59]} 6. O-O {[%clk 0:02:44]}  h6 {[%clk 0:02:58]} 7. c3 {[%clk 0:02:43]}  Nc6 {[%clk 0:02:58]} 8. Bf4 {[%clk 0:02:41]}  Bxa3 {[%clk 0:02:58]} 9. bxa3 {[%clk 0:02:40]}  Nf6 {[%clk 0:02:58]} 10. Qa4 {[%clk 0:02:39]}  O-O {[%clk 0:02:55]} 11. h4 {[%clk 0:02:34]}  Be4 {[%clk 0:02:50]} 12. Nd2 {[%clk 0:01:59]}  Bxg2 {[%clk 0:02:49]} 13. Kxg2 {[%clk 0:02:00]}  Nd7 {[%clk 0:02:48]} 14. Rab1 {[%clk 0:01:51]}  Nb6 {[%clk 0:02:48]} 15. Qc2 {[%clk 0:01:50]}  Qe7 {[%clk 0:02:44]} 16. a4 {[%clk 0:01:49]}  Na5 {[%clk 0:02:36]} 17. e4 {[%clk 0:01:40]}  Rac8 {[%clk 0:02:26]} 18. Rfe1 {[%clk 0:01:39]}  c5 {[%clk 0:02:19]} 19. Rb5 {[%clk 0:01:31]}  Nac4 {[%clk 0:02:07]} 20. a5 {[%clk 0:01:21]}  Na3 {[%clk 0:02:03]} 21. Qb2 {[%clk 0:01:16]}  cxd4 {[%clk 0:01:47]} 22. cxd4 {[%clk 0:01:06]}  Na4 {[%clk 0:01:37]} 23. Qb4 {[%clk 0:00:58]}  Qxb4 {[%clk 0:01:36]} 24. Rxb4 {[%clk 0:00:59]}  Nc2 {[%clk 0:01:37]} 25. Reb1 {[%clk 0:00:54]}  Nc3 {[%clk 0:01:16]} 26. R1b2 {[%clk 0:00:46]}  Nxb4 {[%clk 0:01:09]} 27. Rxb4 {[%clk 0:00:44]}  dxe4 {[%clk 0:00:47]} 28. Rxb7 {[%clk 0:00:41]}  Rfd8 {[%clk 0:00:47]} 29. Nb3 {[%clk 0:00:39]}  a6 {[%clk 0:00:41]} 30. Rb6 {[%clk 0:00:34]}  Ra8 {[%clk 0:00:41]} 31. Nc5 {[%clk 0:00:29]}  Nd5 {[%clk 0:00:33]} 32. Rxa6 {[%clk 0:00:20]}  Nxf4+ {[%clk 0:00:33]} 33. gxf4 {[%clk 0:00:20]}  Rxa6 {[%clk 0:00:34]} 34. Nxa6 {[%clk 0:00:20]}  Ra8 {[%clk 0:00:34]} 35. Nc5 {[%clk 0:00:19]}  Rxa5 {[%clk 0:00:35]} 36. a4 {[%clk 0:00:19]}  Kf8 {[%clk 0:00:29]} 37. Kf1 {[%clk 0:00:20]}  Ke7 {[%clk 0:00:28]} 38. Ke2 {[%clk 0:00:20]}  Ra8 {[%clk 0:00:22]} 39. Ke3 {[%clk 0:00:19]}  f5 {[%clk 0:00:21]} 40. h5 {[%clk 0:00:20]}  Kd6 {[%clk 0:00:20]} 41. f3 {[%clk 0:00:18]}  exf3 {[%clk 0:00:19]} 42. Kxf3 {[%clk 0:00:19]}  Kd5 {[%clk 0:00:20]} 43. Kg3 {[%clk 0:00:19]}  Kxd4 {[%clk 0:00:19]} 44. Nxe6+ {[%clk 0:00:19]}  Ke4 {[%clk 0:00:19]} 45. Nc5+ {[%clk 0:00:17]}  Ke3 {[%clk 0:00:19]} 46. Kh4 {[%clk 0:00:17]}  Kxf4 {[%clk 0:00:18]} 47. Ne6+ {[%clk 0:00:18]}  Ke5 {[%clk 0:00:17]} 48. Nxg7 {[%clk 0:00:19]}  Rxa4+ {[%clk 0:00:16]} 49. Kh3 {[%clk 0:00:18]}  Ra3+ {[%clk 0:00:15]} 50. Kg2 {[%clk 0:00:00]}  Ra8 {[%clk 0:00:15]} 0-1

[Event "January 2 Early 2024"]
[Site "https://www.chess.com"]
[Date "2024.01.02"]
[Round "6"]
[White "Weisz, Bryan"]
[Black "Tuleyeva-Aketayeva, Dana"]
[Result "1-0"]
[Board "135"]
[TimeControl "180+1"]
[WhiteFideId "30934133"]
[BlackFideId "13701932"]
[WhiteElo "2500"]
[BlackElo "2331"]
[WhiteTeam "USA"]
[BlackTeam "KAZ"]
[WhiteClock "0:00:05"]
[BlackClock "0:00:00"]

1. e4 {[%clk 0:02:59]}  d5 {[%clk 0:02:55]} 2. Nc3 {[%clk 0:02:50]}  dxe4 {[%clk 0:02:49]} 3. Nxe4 {[%clk 0:02:51]}  Nf6 {[%clk 0:02:48]} 4. Nxf6+ {[%clk 0:02:41]}  exf6 {[%clk 0:02:48]} 5. d4 {[%clk 0:02:41]}  Bd6 {[%clk 0:02:43]} 6. Bd3 {[%clk 0:02:29]}  Qe7+ {[%clk 0:02:38]} 7. Ne2 {[%clk 0:02:28]}  O-O {[%clk 0:02:33]} 8. O-O {[%clk 0:02:26]}  Nc6 {[%clk 0:02:28]} 9. Re1 {[%clk 0:02:01]}  Qd8 {[%clk 0:02:19]} 10. c3 {[%clk 0:01:53]}  Ne7 {[%clk 0:02:15]} 11. Ng3 {[%clk 0:01:51]}  Re8 {[%clk 0:01:55]} 12. Qh5 {[%clk 0:01:41]}  Ng6 {[%clk 0:01:50]} 13. Bd2 {[%clk 0:01:29]}  Bd7 {[%clk 0:01:29]} 14. Rxe8+ {[%clk 0:01:16]}  Bxe8 {[%clk 0:01:27]} 15. Nf5 {[%clk 0:01:14]}  Bd7 {[%clk 0:01:23]} 16. Nxd6 {[%clk 0:01:14]}  cxd6 {[%clk 0:01:23]} 17. Re1 {[%clk 0:01:09]}  Qb6 {[%clk 0:01:20]} 18. b3 {[%clk 0:00:50]}  Re8 {[%clk 0:01:17]} 19. Rxe8+ {[%clk 0:00:44]}  Bxe8 {[%clk 0:01:18]} 20. Qd5 {[%clk 0:00:40]}  Qc6 {[%clk 0:00:58]} 21. Be4 {[%clk 0:00:34]}  Ne7 {[%clk 0:00:47]} 22. Qxc6 {[%clk 0:00:29]}  bxc6 {[%clk 0:00:46]} 23. Bf4 {[%clk 0:00:26]}  d5 {[%clk 0:00:41]} 24. Bd3 {[%clk 0:00:27]}  Nc8 {[%clk 0:00:39]} 25. Kf1 {[%clk 0:00:24]}  Kf8 {[%clk 0:00:39]} 26. Ke2 {[%clk 0:00:25]}  Ke7 {[%clk 0:00:40]} 27. Bxh7 {[%clk 0:00:24]}  g6 {[%clk 0:00:37]} 28. h4 {[%clk 0:00:23]}  f5 {[%clk 0:00:33]} 29. h5 {[%clk 0:00:17]}  Nd6 {[%clk 0:00:17]} 30. Bxd6+ {[%clk 0:00:11]}  Kxd6 {[%clk 0:00:17]} 31. h6 {[%clk 0:00:08]}  Ke7 {[%clk 0:00:10]} 32. Bxg6 {[%clk 0:00:07]}  Kf6 {[%clk 0:00:09]} 33. Bxf5 {[%clk 0:00:07]}  a6 {[%clk 0:00:03]} 34. h7 {[%clk 0:00:06]}  Kg7 {[%clk 0:00:02]} 35. Bd3 {[%clk 0:00:06]}  f6 {[%clk 0:00:02]} 36. Bxa6 {[%clk 0:00:06]}  Kxh7 {[%clk 0:00:02]} 37. a4 {[%clk 0:00:05]}  Bg6 {[%clk 0:00:02]} 38. Bd3 {[%clk 0:00:05]}  f5 {[%clk 0:00:01]} 39. a5 {[%clk 0:00:05]}  f4 {[%clk 0:00:01]} 40. a6 {[%clk 0:00:04]}  f3+ {[%clk 0:00:00]} 41. gxf3 {[%clk 0:00:05]} 1-0

[Event "January 2 Early 2024"]
[Site "https://www.chess.com"]
[Date "2024.01.02"]
[Round "6"]
[White "Shishkov, Andrei"]
[Black "Blokhin, Sofia"]
[Result "1-0"]
[Board "141"]
[TimeControl "180+1"]
[WhiteFideId "4500563"]
[BlackFideId "4508190"]
[WhiteElo "2489"]
[BlackElo "2299"]
[WhiteTeam "EST"]
[BlackTeam "EST"]
[WhiteClock "0:01:22"]
[BlackClock "0:01:07"]

1. d4 {[%clk 0:03:00]}  f5 {[%clk 0:02:58]} 2. g3 {[%clk 0:03:00]}  Nf6 {[%clk 0:02:58]} 3. Bg2 {[%clk 0:03:00]}  g6 {[%clk 0:02:57]} 4. Nh3 {[%clk 0:02:51]}  Bg7 {[%clk 0:02:57]} 5. c4 {[%clk 0:02:51]}  O-O {[%clk 0:02:55]} 6. Nc3 {[%clk 0:02:52]}  d6 {[%clk 0:02:55]} 7. d5 {[%clk 0:02:52]}  c6 {[%clk 0:02:50]} 8. O-O {[%clk 0:02:52]}  cxd5 {[%clk 0:02:49]} 9. cxd5 {[%clk 0:02:45]}  b6 {[%clk 0:02:48]} 10. Nf4 {[%clk 0:02:44]}  g5 {[%clk 0:02:44]} 11. Ne6 {[%clk 0:02:43]}  Qd7 {[%clk 0:02:34]} 12. Nxf8 {[%clk 0:02:36]}  Kxf8 {[%clk 0:02:34]} 13. Bxg5 {[%clk 0:02:37]}  Bb7 {[%clk 0:02:32]} 14. Qd2 {[%clk 0:02:36]}  Na6 {[%clk 0:02:26]} 15. Bh6 {[%clk 0:02:33]}  Nc5 {[%clk 0:02:24]} 16. Bxg7+ {[%clk 0:02:30]}  Kxg7 {[%clk 0:02:24]} 17. Qg5+ {[%clk 0:02:31]}  Kf7 {[%clk 0:02:24]} 18. Bh3 {[%clk 0:02:27]}  Nxd5 {[%clk 0:02:16]} 19. Bxf5 {[%clk 0:02:04]}  Qc6 {[%clk 0:02:15]} 20. Qh5+ {[%clk 0:01:54]}  Kf8 {[%clk 0:02:12]} 21. Qf3 {[%clk 0:01:41]}  Nf6 {[%clk 0:01:27]} 22. Qxc6 {[%clk 0:01:39]}  Bxc6 {[%clk 0:01:28]} 23. Rac1 {[%clk 0:01:37]}  e6 {[%clk 0:01:27]} 24. Bh3 {[%clk 0:01:33]}  Bb7 {[%clk 0:01:22]} 25. Bg2 {[%clk 0:01:30]}  d5 {[%clk 0:01:21]} 26. b4 {[%clk 0:01:28]}  Ncd7 {[%clk 0:01:17]} 27. Nb5 {[%clk 0:01:27]}  Ke7 {[%clk 0:01:14]} 28. Rfe1 {[%clk 0:01:23]}  Ba6 {[%clk 0:01:07]} 29. Nc7 {[%clk 0:01:22]} 1-0

[Event "January 2 Early 2024"]
[Site "https://www.chess.com"]
[Date "2024.01.02"]
[Round "6"]
[White "Skaric, Djuro"]
[Black "Postnikov, Daniil"]
[Result "0-1"]
[Board "142"]
[TimeControl "180+1"]
[WhiteFideId "934569"]
[BlackFideId "4166329"]
[WhiteElo "2300"]
[BlackElo "2482"]
[WhiteTeam "SRB"]
[BlackTeam "RUS"]
[WhiteClock "0:00:00"]
[BlackClock "0:00:17"]

1. g3 {[%clk 0:03:00]}  f5 {[%clk 0:02:57]} 2. Bg2 {[%clk 0:03:00]}  g6 {[%clk 0:02:57]} 3. Nc3 {[%clk 0:02:59]}  Bg7 {[%clk 0:02:56]} 4. d3 {[%clk 0:03:00]}  e5 {[%clk 0:02:53]} 5. e4 {[%clk 0:03:00]}  fxe4 {[%clk 0:02:52]} 6. dxe4 {[%clk 0:02:59]}  Nc6 {[%clk 0:02:51]} 7. f4 {[%clk 0:02:59]}  Nge7 {[%clk 0:02:45]} 8. Nf3 {[%clk 0:02:59]}  d6 {[%clk 0:02:42]} 9. O-O {[%clk 0:02:57]}  O-O {[%clk 0:02:42]} 10. Be3 {[%clk 0:02:57]}  Bg4 {[%clk 0:02:34]} 11. Qd2 {[%clk 0:02:55]}  Qd7 {[%clk 0:02:31]} 12. Rad1 {[%clk 0:02:47]}  Rad8 {[%clk 0:02:26]} 13. Rf2 {[%clk 0:02:45]}  Kh8 {[%clk 0:02:22]} 14. Rdf1 {[%clk 0:02:22]}  a6 {[%clk 0:02:16]} 15. Ng5 {[%clk 0:02:17]}  h6 {[%clk 0:02:11]} 16. Nf3 {[%clk 0:02:16]}  Kh7 {[%clk 0:02:11]} 17. Nh4 {[%clk 0:02:10]}  exf4 {[%clk 0:01:39]} 18. gxf4 {[%clk 0:02:09]}  Bf6 {[%clk 0:01:40]} 19. Nf3 {[%clk 0:02:06]}  Rde8 {[%clk 0:01:33]} 20. f5 {[%clk 0:01:47]}  Bxf3 {[%clk 0:01:21]} 21. Rxf3 {[%clk 0:01:47]}  g5 {[%clk 0:01:18]} 22. Ne2 {[%clk 0:01:30]}  Ne5 {[%clk 0:01:15]} 23. Rg3 {[%clk 0:01:29]}  Nc4 {[%clk 0:01:15]} 24. Qc1 {[%clk 0:01:23]}  Nxe3 {[%clk 0:01:15]} 25. Qxe3 {[%clk 0:01:22]}  Nc6 {[%clk 0:01:15]} 26. c3 {[%clk 0:01:21]}  Ne5 {[%clk 0:01:11]} 27. Kh1 {[%clk 0:01:20]}  Rg8 {[%clk 0:01:07]} 28. Rg1 {[%clk 0:01:18]}  h5 {[%clk 0:01:04]} 29. Bf1 {[%clk 0:01:15]}  g4 {[%clk 0:01:02]} 30. Nd4 {[%clk 0:01:15]}  Bg5 {[%clk 0:00:59]} 31. Qe2 {[%clk 0:01:12]}  Qf7 {[%clk 0:01:00]} 32. Ne6 {[%clk 0:01:10]}  Rxe6 {[%clk 0:00:57]} 33. fxe6 {[%clk 0:01:09]}  Qxe6 {[%clk 0:00:58]} 34. h3 {[%clk 0:01:04]}  Bf4 {[%clk 0:00:50]} 35. hxg4 {[%clk 0:00:53]}  Bxg3 {[%clk 0:00:47]} 36. Rxg3 {[%clk 0:00:52]}  hxg4 {[%clk 0:00:48]} 37. Qe3 {[%clk 0:00:47]}  Qh6+ {[%clk 0:00:47]} 38. Kg2 {[%clk 0:00:46]}  Qxe3 {[%clk 0:00:37]} 39. Rxe3 {[%clk 0:00:46]}  Kg6 {[%clk 0:00:36]} 40. Be2 {[%clk 0:00:45]}  Kg5 {[%clk 0:00:36]} 41. c4 {[%clk 0:00:45]}  Rh8 {[%clk 0:00:32]} 42. Rb3 {[%clk 0:00:43]}  b6 {[%clk 0:00:31]} 43. c5 {[%clk 0:00:42]}  dxc5 {[%clk 0:00:28]} 44. Bxa6 {[%clk 0:00:40]}  Kf4 {[%clk 0:00:28]} 45. Bb7 {[%clk 0:00:36]}  Rd8 {[%clk 0:00:23]} 46. Bd5 {[%clk 0:00:34]}  c6 {[%clk 0:00:23]} 47. Be6 {[%clk 0:00:34]}  Rd2+ {[%clk 0:00:22]} 48. Kf1 {[%clk 0:00:30]}  b5 {[%clk 0:00:22]} 49. Rc3 {[%clk 0:00:25]}  c4 {[%clk 0:00:19]} 50. b3 {[%clk 0:00:23]}  b4 {[%clk 0:00:20]} 51. Rc1 {[%clk 0:00:21]}  c3 {[%clk 0:00:20]} 52. a4 {[%clk 0:00:15]}  g3 {[%clk 0:00:19]} 53. Bh3 {[%clk 0:00:00]}  Kf3 {[%clk 0:00:17]} 0-1

[Event "January 2 Early 2024"]
[Site "https://www.chess.com"]
[Date "2024.01.02"]
[Round "6"]
[White "Gryshko, Vitalii"]
[Black "Eggleston, Thomas A"]
[Result "1-0"]
[Board "143"]
[TimeControl "180+1"]
[WhiteFideId "14174286"]
[BlackFideId "412139"]
[WhiteElo "2481"]
[BlackElo "2298"]
[WhiteTeam "UKR"]
[BlackTeam "ENG"]
[WhiteClock "0:00:08"]
[BlackClock "0:00:00"]

1. c4 {[%clk 0:03:00]}  g6 {[%clk 0:02:55]} 2. d3 {[%clk 0:02:54]}  Bg7 {[%clk 0:02:52]} 3. g3 {[%clk 0:02:54]}  c5 {[%clk 0:02:51]} 4. Bg2 {[%clk 0:02:54]}  d6 {[%clk 0:02:50]} 5. Nc3 {[%clk 0:02:50]}  e5 {[%clk 0:02:49]} 6. e3 {[%clk 0:02:51]}  Ne7 {[%clk 0:02:47]} 7. Nge2 {[%clk 0:02:51]}  Nbc6 {[%clk 0:02:47]} 8. O-O {[%clk 0:02:51]}  O-O {[%clk 0:02:46]} 9. Rb1 {[%clk 0:02:50]}  Be6 {[%clk 0:02:42]} 10. Nd5 {[%clk 0:02:46]}  Qd7 {[%clk 0:02:34]} 11. a3 {[%clk 0:02:41]}  Bh3 {[%clk 0:02:05]} 12. b4 {[%clk 0:02:40]}  Bxg2 {[%clk 0:02:03]} 13. Kxg2 {[%clk 0:02:39]}  Nxd5 {[%clk 0:02:01]} 14. cxd5 {[%clk 0:02:34]}  Ne7 {[%clk 0:02:01]} 15. e4 {[%clk 0:02:33]}  b6 {[%clk 0:01:56]} 16. bxc5 {[%clk 0:02:24]}  dxc5 {[%clk 0:01:53]} 17. Bg5 {[%clk 0:02:21]}  Nc8 {[%clk 0:01:52]} 18. Qd2 {[%clk 0:02:17]}  Nd6 {[%clk 0:01:49]} 19. f3 {[%clk 0:02:05]}  f5 {[%clk 0:01:49]} 20. Nc3 {[%clk 0:01:58]}  Rf7 {[%clk 0:01:46]} 21. h4 {[%clk 0:01:48]}  b5 {[%clk 0:01:13]} 22. h5 {[%clk 0:01:46]}  a5 {[%clk 0:01:08]} 23. Rh1 {[%clk 0:01:31]}  b4 {[%clk 0:01:07]} 24. Ne2 {[%clk 0:01:18]}  Rb8 {[%clk 0:01:03]} 25. Bh6 {[%clk 0:01:13]}  Bf6 {[%clk 0:00:56]} 26. Rhc1 {[%clk 0:01:04]}  c4 {[%clk 0:00:52]} 27. axb4 {[%clk 0:00:52]}  cxd3 {[%clk 0:00:52]} 28. Qxd3 {[%clk 0:00:50]}  axb4 {[%clk 0:00:49]} 29. Rc6 {[%clk 0:00:49]}  fxe4 {[%clk 0:00:38]} 30. fxe4 {[%clk 0:00:41]}  Be7 {[%clk 0:00:37]} 31. hxg6 {[%clk 0:00:40]}  hxg6 {[%clk 0:00:36]} 32. Ng1 {[%clk 0:00:32]}  Qg4 {[%clk 0:00:35]} 33. Re1 {[%clk 0:00:16]}  b3 {[%clk 0:00:33]} 34. Nf3 {[%clk 0:00:15]}  b2 {[%clk 0:00:29]} 35. Nxe5 {[%clk 0:00:15]}  Qh5 {[%clk 0:00:11]} 36. Nxf7 {[%clk 0:00:15]}  Nxf7 {[%clk 0:00:08]} 37. Bf4 {[%clk 0:00:15]}  Rb4 {[%clk 0:00:04]} 38. e5 {[%clk 0:00:13]}  g5 {[%clk 0:00:03]} 39. Rc8+ {[%clk 0:00:12]}  Kg7 {[%clk 0:00:02]} 40. d6 {[%clk 0:00:13]}  gxf4 {[%clk 0:00:02]} 41. dxe7 {[%clk 0:00:13]}  f3+ {[%clk 0:00:01]} 42. Qxf3 {[%clk 0:00:09]}  Qxf3+ {[%clk 0:00:01]} 43. Kxf3 {[%clk 0:00:10]}  Nxe5+ {[%clk 0:00:00]} 44. Kg2 {[%clk 0:00:08]} 1-0

[Event "January 2 Early 2024"]
[Site "https://www.chess.com"]
[Date "2024.01.02"]
[Round "6"]
[White "Pourkashiyan, Atousa"]
[Black "Jahnz, Fabian"]
[Result "0-1"]
[Board "144"]
[TimeControl "180+1"]
[WhiteFideId "12502014"]
[BlackFideId "4653300"]
[WhiteElo "2476"]
[BlackElo "2294"]
[WhiteTeam "USA"]
[BlackTeam "GER"]
[WhiteClock "0:00:25"]
[BlackClock "0:00:09"]

1. e4 {[%clk 0:02:58]}  c6 {[%clk 0:02:57]} 2. d4 {[%clk 0:02:58]}  d5 {[%clk 0:02:58]} 3. e5 {[%clk 0:02:50]}  Bf5 {[%clk 0:02:57]} 4. Nf3 {[%clk 0:02:49]}  e6 {[%clk 0:02:57]} 5. Be2 {[%clk 0:02:49]}  Ne7 {[%clk 0:02:57]} 6. O-O {[%clk 0:02:50]}  Nd7 {[%clk 0:02:57]} 7. h3 {[%clk 0:02:50]}  Nc8 {[%clk 0:02:57]} 8. Nbd2 {[%clk 0:02:50]}  Be7 {[%clk 0:02:57]} 9. Nb3 {[%clk 0:02:50]}  O-O {[%clk 0:02:58]} 10. a4 {[%clk 0:02:51]}  a5 {[%clk 0:02:58]} 11. c4 {[%clk 0:02:43]}  dxc4 {[%clk 0:02:57]} 12. Bxc4 {[%clk 0:02:42]}  Ncb6 {[%clk 0:02:58]} 13. Bd3 {[%clk 0:02:42]}  Bxd3 {[%clk 0:02:58]} 14. Qxd3 {[%clk 0:02:42]}  Nd5 {[%clk 0:02:58]} 15. Bd2 {[%clk 0:02:38]}  Qb6 {[%clk 0:02:52]} 16. Bg5 {[%clk 0:02:21]}  Bxg5 {[%clk 0:02:47]} 17. Nxg5 {[%clk 0:02:22]}  g6 {[%clk 0:02:47]} 18. Ne4 {[%clk 0:02:18]}  Kg7 {[%clk 0:02:44]} 19. Rad1 {[%clk 0:02:04]}  Qb4 {[%clk 0:02:32]} 20. Nbc5 {[%clk 0:01:55]}  Nxc5 {[%clk 0:02:26]} 21. Nxc5 {[%clk 0:01:56]}  b6 {[%clk 0:02:14]} 22. Ne4 {[%clk 0:01:50]}  Qxa4 {[%clk 0:02:10]} 23. Qg3 {[%clk 0:01:41]}  Qc2 {[%clk 0:01:59]} 24. Ng5 {[%clk 0:01:27]}  h6 {[%clk 0:01:53]} 25. Nf3 {[%clk 0:01:18]}  Qxb2 {[%clk 0:01:50]} 26. Rc1 {[%clk 0:01:18]}  Nc3 {[%clk 0:01:42]} 27. Rxc3 {[%clk 0:01:06]}  Qxc3 {[%clk 0:01:41]} 28. h4 {[%clk 0:01:06]}  a4 {[%clk 0:01:31]} 29. h5 {[%clk 0:01:07]}  a3 {[%clk 0:01:20]} 30. Qg4 {[%clk 0:01:07]}  a2 {[%clk 0:00:42]} 31. hxg6 {[%clk 0:01:07]}  fxg6 {[%clk 0:00:35]} 32. Nh4 {[%clk 0:01:07]}  Qc2 {[%clk 0:00:25]} 33. Qxe6 {[%clk 0:01:06]}  a1=Q {[%clk 0:00:21]} 34. Rxa1 {[%clk 0:01:02]}  Rxa1+ {[%clk 0:00:22]} 35. Kh2 {[%clk 0:01:02]}  Rxf2 {[%clk 0:00:15]} 36. Qg4 {[%clk 0:00:37]}  Ra2 {[%clk 0:00:11]} 37. e6 {[%clk 0:00:37]}  Rxg2+ {[%clk 0:00:06]} 38. Nxg2 {[%clk 0:00:26]}  Qxg2+ {[%clk 0:00:07]} 39. Qxg2 {[%clk 0:00:27]}  Rxg2+ {[%clk 0:00:08]} 40. Kxg2 {[%clk 0:00:25]}  Kf6 {[%clk 0:00:09]} 0-1